bitfinex/quotes_SOLUSD_20251116
["timestamp","ask_amount","ask_price","bid_price","bid_amount"]
[1763327384849,17.66,136.48,136.47,16.48219453]
[1763327387647,17.66,136.48,136.47,6.69336684]
[1763327391377,0.87,136.54,136.47,6.69336684]
[1763327391571,6.86336684,136.54,136.49,5.99336684]
[1763327392073,6.86336684,136.54,136.49,6.69336684]
[1763327392760,0.87,136.54,136.49,6.69336684]
[1763327392971,6.86336684,136.54,136.49,6.69336684]
[1763327393378,6.66336684,136.53,136.49,5.99336684]
[1763327393674,0.67,136.52,136.48,5.99336684]
[1763327394477,0.67,136.52,136.47,0.7]
[1763327394478,50.2,136.54,136.49,5.99336684]
[1763327394674,0.2,136.54,136.49,6.69336684]
[1763327396388,0.87,136.5,136.46,9.78882769]
[1763327396569,0.87,136.5,136.4,6.69336684]
[1763327396570,22.6512,136.47,136.4,6.69336684]
[1763327396772,22.6512,136.44,136.31,1.99999999]
[1763327396961,10.40785719,136.45,136.39,11.10785719]
[1763327397293,50.0,136.47,136.4,0.7]
[1763327397467,0.67,136.49,136.45,10.40785719]
[1763327397674,0.67,136.49,136.46,10.40785719]
[1763327397993,0.67,136.49,136.45,10.40785719]
[1763327398493,0.67,136.49,136.43,0.7]
[1763327398803,10.40785719,136.46,136.4,0.7]
[1763327399103,10.40785719,136.46,136.41,10.40785719]
[1763327399287,11.07785719,136.46,136.41,10.40785719]
[1763327399581,0.67,136.45,136.41,10.40785719]
[1763327400155,11.07785719,136.45,136.4,10.40785719]
[1763327400585,11.07785719,136.45,136.4,11.06785719]
[1763327400796,10.40785719,136.46,136.41,0.66]
[1763327400972,0.66,136.45,136.41,11.06785719]
[1763327401300,33.05905719,136.42,136.32,0.66]
[1763327401587,10.40785719,136.34,136.3,11.06785719]
[1763327401894,10.40785719,136.34,136.3,0.66]
[1763327402098,0.66,136.33,136.29,10.40785719]
[1763327402392,10.40785719,136.35,136.3,10.40785719]
[1763327402570,33.71905719,136.38,136.33,10.40785719]
[1763327402768,0.66,136.38,136.34,10.40785719]
[1763327402985,10.40785719,136.4,136.36,10.40785719]
[1763327403191,0.66,136.4,136.34,10.40785719]
[1763327403498,0.66,136.42,136.38,10.40785719]
[1763327403677,0.66,136.42,136.33,9.78882769]
[1763327403678,11.06785719,136.42,136.37,10.40785719]
[1763327403871,11.06785719,136.42,136.38,10.40785719]
[1763327404086,11.06785719,136.42,136.37,10.40785719]
[1763327404576,11.06785719,136.41,136.35,0.66]
[1763327404899,10.40785719,136.38,136.33,10.40785719]
[1763327405081,10.40785719,136.37,136.32,10.40785719]
[1763327405275,10.40785719,136.37,136.31,0.66]
[1763327405477,0.66,136.36,136.3,10.40785719]
[1763327405678,10.40785719,136.35,136.3,10.40785719]
[1763327406090,0.66,136.35,136.32,10.40785719]
[1763327406285,0.66,136.35,136.31,10.40785719]
[1763327406602,50.0,136.39,136.34,10.40785719]
[1763327406603,0.66,136.38,136.34,10.40785719]
[1763327407102,10.40785719,136.37,136.33,10.40785719]
[1763327407407,10.40785719,136.36,136.32,10.40785719]
[1763327407607,11.06785719,136.37,136.32,10.40785719]
[1763327407801,10.40785719,136.37,136.32,10.40785719]
[1763327407988,10.40785719,136.35,136.29,9.78882769]
[1763327408300,0.66,136.36,136.31,10.40785719]
[1763327408492,11.06785719,136.36,136.32,10.40785719]
[1763327409110,0.66,136.36,136.32,10.40785719]
[1763327409283,10.60785719,136.5,136.33,0.66]
[1763327409284,50.0,136.45,136.33,0.66]
[1763327409588,67.62,136.43,136.34,9.78882769]
[1763327409780,18.28,136.43,136.39,10.40785719]
[1763327410493,0.66,136.42,136.39,10.40785719]
[1763327410695,0.66,136.42,136.38,10.40785719]
[1763327411093,10.40785719,136.4,136.32,23.3112]
[1763327411296,10.40785719,136.4,136.36,10.40785719]
[1763327411597,11.06785719,136.39,136.32,22.6512]
[1763327411792,11.06785719,136.39,136.34,10.40785719]
[1763327411793,10.40785719,136.38,136.34,10.40785719]
[1763327411981,11.06785719,136.38,136.34,10.40785719]
[1763327412184,11.06785719,136.38,136.31,0.66]
[1763327412185,0.66,136.37,136.33,10.40785719]
[1763327412824,10.40785719,136.4,136.35,10.40785719]
[1763327412980,73.3112,136.41,136.36,10.40785719]
[1763327412981,11.06785719,136.41,136.36,10.40785719]
[1763327413384,10.40785719,136.38,136.32,0.66]
[1763327413617,10.40785719,136.38,136.34,10.40785719]
[1763327413788,10.40785719,136.39,136.34,10.40785719]
[1763327414113,10.40785719,136.37,136.32,10.40785719]
[1763327414482,0.66,136.36,136.32,10.40785719]
[1763327417410,10.40785719,136.35,136.3,10.40785719]
[1763327417801,11.07785719,136.35,136.3,11.09785719]
[1763327418110,33.05905719,136.4,136.34,10.40785719]
[1763327418111,0.67,136.4,136.34,10.40785719]
[1763327418326,11.07785719,136.4,136.35,10.40785719]
[1763327418513,10.40785719,136.39,136.35,10.40785719]
[1763327418690,11.07785719,136.39,136.35,10.40785719]
[1763327419485,11.07785719,136.39,136.33,0.69]
[1763327419689,11.07785719,136.39,136.35,10.40785719]
[1763327420207,0.67,136.38,136.34,10.40785719]
[1763327420810,10.40785719,136.37,136.32,10.40785719]
[1763327421121,0.67,136.38,136.35,10.40785719]
[1763327421413,11.07785719,136.38,136.3,22.6512]
[1763327421709,11.07785719,136.38,136.34,10.40785719]
[1763327422818,103.87,136.4,136.34,11.09785719]
[1763327423019,103.87,136.4,136.35,10.40785719]
[1763327423195,11.07785719,136.39,136.35,10.40785719]
[1763327423395,10.40785719,136.38,136.33,10.40785719]
[1763327423712,11.07785719,136.38,136.33,10.40785719]
[1763327423911,10.40785719,136.38,136.33,11.09785719]
[1763327424111,103.2,136.4,136.37,10.40785719]
[1763327424312,0.67,136.42,136.39,10.40785719]
[1763327424527,17.62,136.43,136.41,10.40785719]
[1763327424820,17.62,136.43,136.42,10.40785719]
[1763327425845,17.62,136.43,136.4,0.69]
[1763327426128,17.62,136.43,136.42,10.40785719]
[1763327426291,17.62,136.43,136.4,10.40785719]
[1763327426494,17.62,136.43,136.41,11.09785719]
[1763327427719,17.62,136.43,136.37,9.78882769]
[1763327427899,17.62,136.43,136.4,10.40785719]
[1763327428603,17.62,136.43,136.4,11.09785719]
[1763327428819,17.62,136.43,136.4,10.40785719]
[1763327431109,17.62,136.43,136.39,9.78882769]
[1763327431315,17.62,136.43,136.39,10.40785719]
[1763327431521,18.3,136.43,136.39,10.40785719]
[1763327431924,17.62,136.43,136.4,10.40785719]
[1763327432223,18.3,136.43,136.4,10.40785719]
[1763327433421,17.62,136.43,136.4,11.11785719]
[1763327433622,17.62,136.43,136.41,10.40785719]
[1763327434013,17.62,136.43,136.4,10.40785719]
[1763327434935,10.40785719,136.41,136.34,0.71]
[1763327435234,10.40785719,136.4,136.35,10.40785719]
[1763327435710,0.68,136.39,136.35,10.40785719]
[1763327436214,11.08785719,136.42,136.38,10.40785719]
[1763327436417,0.68,136.42,136.38,10.40785719]
[1763327436617,17.62,136.43,136.39,10.40785719]
[1763327436822,17.62,136.43,136.4,10.40785719]
[1763327437009,17.62,136.43,136.39,11.11785719]
[1763327437537,17.62,136.43,136.39,0.71]
[1763327437750,0.68,136.42,136.38,10.40785719]
[1763327437926,0.68,136.42,136.39,10.40785719]
[1763327438134,0.68,136.42,136.38,0.71]
[1763327438433,0.68,136.42,136.38,11.11785719]
[1763327438832,11.08785719,136.42,136.34,0.71]
[1763327439012,10.40785719,136.41,136.36,10.40785719]
[1763327439223,11.08785719,136.41,136.36,10.40785719]
[1763327439422,0.68,136.4,136.36,10.40785719]
[1763327440127,0.68,136.4,136.36,11.11785719]
[1763327440333,0.68,136.42,136.37,11.11785719]
[1763327440520,11.08785719,136.42,136.37,11.11785719]
[1763327441140,0.68,136.41,136.37,11.11785719]
[1763327441841,0.68,136.41,136.38,10.40785719]
[1763327442037,11.08785719,136.43,136.38,10.40785719]
[1763327442240,50.0,136.45,136.39,11.11785719]
[1763327442448,0.68,136.43,136.39,11.11785719]
[1763327443012,0.68,136.43,136.39,10.40785719]
[1763327443211,50.68,136.45,136.4,10.40785719]
[1763327443418,0.68,136.44,136.4,10.40785719]
[1763327443642,50.0,136.45,136.4,10.40785719]
[1763327443840,50.0,136.45,136.41,10.40785719]
[1763327443841,0.68,136.45,136.41,10.40785719]
[1763327444022,11.08785719,136.46,136.41,11.11785719]
[1763327444218,0.68,136.46,136.42,10.40785719]
[1763327444433,11.08785719,136.47,136.42,10.40785719]
[1763327444637,0.68,136.46,136.42,10.40785719]
[1763327444848,0.68,136.46,136.42,11.11785719]
[1763327445345,10.40785719,136.47,136.42,11.11785719]
[1763327445637,11.08785719,136.47,136.42,11.11785719]
[1763327445844,0.68,136.47,136.42,11.11785719]
[1763327446159,0.68,136.46,136.42,11.11785719]
[1763327447435,10.40785719,136.47,136.43,0.71]
[1763327447641,33.73905719,136.48,136.43,11.11785719]
[1763327447834,11.08785719,136.48,136.43,11.11785719]
[1763327448164,17.62,136.49,136.45,10.40785719]
[1763327448339,28.02785719,136.49,136.44,11.11785719]
[1763327448539,28.70785719,136.49,136.44,11.11785719]
[1763327448846,17.62,136.49,136.44,10.40785719]
[1763327449048,18.3,136.49,136.45,10.40785719]
[1763327449362,17.62,136.49,136.47,10.40785719]
[1763327449531,17.62,136.49,136.48,10.40785719]
[1763327450841,17.62,136.49,136.48,11.11785719]
[1763327451549,17.62,136.49,136.46,22.6512]
[1763327451865,17.62,136.49,136.47,10.40785719]
[1763327453555,18.3,136.49,136.46,10.40785719]
[1763327453735,18.3,136.49,136.45,10.40785719]
[1763327454353,17.62,136.49,136.46,11.11785719]
[1763327455257,17.62,136.49,136.46,10.40785719]
[1763327455556,0.68,136.48,136.45,10.40785719]
[1763327455934,0.68,136.48,136.44,10.40785719]
[1763327458066,0.68,136.48,136.44,11.11785719]
[1763327458653,17.62,136.49,136.45,11.11785719]
[1763327458961,17.62,136.49,136.46,5.97217477]
[1763327459462,17.62,136.49,136.48,5.97217477]
[1763327460151,0.2,136.5,136.48,5.97217477]
[1763327461146,0.2,136.5,136.47,6.68217477]
[1763327461365,0.2,136.5,136.48,5.97217477]
[1763327461535,0.2,136.5,136.48,0.69]
[1763327461746,0.2,136.5,136.49,6.66217477]
[1763327462439,0.2,136.5,136.46,23.3412]
[1763327462640,0.2,136.5,136.46,5.97217477]
[1763327462641,0.87,136.5,136.46,5.97217477]
[1763327462861,0.87,136.5,136.38,0.69]
[1763327462862,5.97217477,136.47,136.38,0.69]
[1763327463051,0.67,136.49,136.41,5.97217477]
[1763327463260,5.97217477,136.46,136.41,5.97217477]
[1763327463651,0.67,136.45,136.41,5.97217477]
[1763327465346,0.67,136.45,136.41,6.66217477]
[1763327466569,0.67,136.45,136.42,5.97217477]
[1763327467376,6.64217477,136.48,136.42,6.66217477]
[1763327467679,5.97217477,136.47,136.42,5.97217477]
[1763327468050,0.67,136.46,136.42,5.97217477]
[1763327468375,0.67,136.46,136.4,0.69]
[1763327468580,0.67,136.46,136.42,5.97217477]
[1763327471288,0.67,136.48,136.44,5.97217477]
[1763327471457,0.67,136.48,136.43,0.69]
[1763327471656,6.64217477,136.48,136.43,5.97217477]
[1763327471950,5.97217477,136.47,136.42,5.97217477]
[1763327472157,0.67,136.46,136.43,5.97217477]
[1763327472355,50.2,136.5,136.45,5.97217477]
[1763327472356,6.84217477,136.5,136.45,5.97217477]
[1763327472667,0.67,136.49,136.45,5.97217477]
[1763327473077,0.67,136.49,136.46,5.97217477]
[1763327473675,0.2,136.5,136.47,5.97217477]
[1763327473868,0.87,136.5,136.47,5.97217477]
[1763327474256,0.67,136.49,136.46,5.97217477]
[1763327474458,0.87,136.5,136.43,22.6512]
[1763327474764,0.87,136.5,136.46,6.66217477]
[1763327476484,0.2,136.5,136.47,0.66]
[1763327476782,0.92,136.5,136.46,6.63217477]
[1763327478590,5.97217477,136.47,136.4,0.66]
[1763327478893,5.97217477,136.46,136.41,6.63217477]
[1763327479062,5.97217477,136.46,136.41,5.97217477]
[1763327479261,0.72,136.45,136.41,5.97217477]
[1763327479774,0.72,136.45,136.41,6.63217477]
[1763327480582,0.72,136.45,136.36,9.78882769]
[1763327480771,5.97217477,136.44,136.38,0.66]
[1763327480975,5.97217477,136.41,136.36,5.97217477]
[1763327481160,0.72,136.41,136.38,5.97217477]
[1763327481358,0.72,136.41,136.35,9.78882769]
[1763327481561,0.72,136.41,136.37,5.97217477]
[1763327482903,5.97217477,136.39,136.34,5.97217477]
[1763327483195,5.97217477,136.39,136.35,5.97217477]
[1763327483397,5.97217477,136.39,136.34,5.97217477]
[1763327483572,5.97217477,136.36,136.31,5.97217477]
[1763327483778,0.72,136.35,136.31,5.97217477]
[1763327484208,5.97217477,136.36,136.31,6.63217477]
[1763327484387,6.69217477,136.36,136.31,6.63217477]
[1763327484700,0.72,136.39,136.35,5.97217477]
[1763327485107,6.69217477,136.39,136.34,5.97217477]
[1763327485395,0.72,136.39,136.35,5.97217477]
[1763327485601,0.72,136.38,136.34,5.97217477]
[1763327485913,6.69217477,136.38,136.34,5.97217477]
[1763327486299,0.72,136.38,136.34,5.97217477]
[1763327486800,0.72,136.38,136.34,6.63217477]
[1763327486998,0.72,136.38,136.35,5.97217477]
[1763327487779,6.69217477,136.4,136.35,5.97217477]
[1763327488084,0.72,136.39,136.35,5.97217477]
[1763327488276,50.0,136.43,136.36,5.97217477]
[1763327488603,29.34337477,136.42,136.37,5.97217477]
[1763327489003,6.69217477,136.41,136.36,5.97217477]
[1763327489503,0.72,136.4,136.37,5.97217477]
[1763327493015,0.69,136.45,136.39,5.97217477]
[1763327493313,5.97217477,136.43,136.35,23.3712]
[1763327493485,5.97217477,136.43,136.38,5.97217477]
[1763327493678,0.69,136.42,136.38,5.97217477]
[1763327493878,0.69,136.42,136.39,5.97217477]
[1763327494490,23.3412,136.45,136.41,5.97217477]
[1763327494692,0.69,136.44,136.41,5.97217477]
[1763327495608,0.69,136.44,136.4,5.97217477]
[1763327495810,6.66217477,136.44,136.38,0.72]
[1763327496111,5.97217477,136.43,136.38,5.97217477]
[1763327496284,0.69,136.43,136.39,5.97217477]
[1763327496485,0.69,136.43,136.4,5.97217477]
[1763327497308,73.59217477,136.48,136.42,5.97217477]
[1763327497309,23.3412,136.47,136.42,5.97217477]
[1763327497503,23.3412,136.47,136.43,5.97217477]
[1763327497704,0.69,136.46,136.43,5.97217477]
[1763327498204,0.69,136.46,136.41,0.72]
[1763327498205,5.97217477,136.45,136.41,5.97217477]
[1763327498520,72.6512,136.47,136.42,6.69217477]
[1763327498687,0.69,136.47,136.44,5.97217477]
[1763327498892,6.66217477,136.46,136.41,5.97217477]
[1763327499091,0.69,136.46,136.42,5.97217477]
[1763327499285,0.69,136.45,136.43,5.97217477]
[1763327499488,0.69,136.48,136.44,5.97217477]
[1763327499683,23.3412,136.48,136.45,5.97217477]
[1763327500690,0.69,136.47,136.44,5.97217477]
[1763327501000,23.3412,136.48,136.44,5.97217477]
[1763327501403,0.69,136.48,136.44,0.72]
[1763327501601,0.69,136.47,136.44,5.97217477]
[1763327502112,0.69,136.47,136.4,38.41220246]
[1763327502113,6.66217477,136.47,136.4,22.6512]
[1763327502297,6.66217477,136.47,136.42,5.97217477]
[1763327502614,6.66217477,136.48,136.43,5.97217477]
[1763327503017,5.97217477,136.46,136.38,10.50882769]
[1763327503218,28.62337477,136.45,136.4,5.97217477]
[1763327503714,0.69,136.44,136.4,5.97217477]
[1763327504019,0.69,136.45,136.42,5.97217477]
[1763327504813,0.69,136.45,136.41,0.72]
[1763327505017,0.69,136.45,136.42,5.97217477]
[1763327507112,0.69,136.45,136.41,5.97217477]
[1763327510107,0.69,136.45,136.42,5.97217477]
[1763327510920,0.69,136.45,136.42,2.50981079]
[1763327511330,0.69,136.45,136.41,0.72]
[1763327511502,0.69,136.45,136.42,2.50981079]
[1763327513424,0.69,136.45,136.41,3.22981079]
[1763327514325,0.69,136.45,136.41,2.50981079]
[1763327517827,0.69,136.45,136.42,2.50981079]
[1763327518734,0.69,136.45,136.43,2.50981079]
[1763327519034,2.50981079,136.44,136.37,9.78882769]
[1763327519215,3.19981079,136.45,136.39,0.72]
[1763327519415,0.69,136.44,136.41,2.50981079]
[1763327519828,0.69,136.44,136.4,2.50981079]
[1763327520024,3.19981079,136.44,136.37,10.50882769]
[1763327520230,3.19981079,136.44,136.39,2.50981079]
[1763327520433,0.68,136.43,136.39,2.50981079]
[1763327520844,0.68,136.43,136.39,3.9230777]
[1763327521338,3.9230777,136.41,136.37,3.9230777]
[1763327521541,3.9230777,136.39,136.32,0.69]
[1763327521849,130.4542777,136.42,136.33,23.3412]
[1763327522153,3.9230777,136.39,136.34,3.9230777]
[1763327522312,0.68,136.38,136.34,3.9230777]
[1763327522639,4.6030777,136.38,136.34,3.9230777]
[1763327523240,0.68,136.37,136.35,3.9230777]
[1763327523436,103.88,136.42,136.36,3.9230777]
[1763327523741,0.68,136.41,136.38,3.9230777]
[1763327524338,0.68,136.41,136.36,0.69]
[1763327524639,4.6030777,136.41,136.37,3.9230777]
[1763327525041,0.68,136.4,136.37,3.9230777]
[1763327525712,3.9230777,136.39,136.33,22.74314808]
[1763327525913,3.9230777,136.39,136.35,3.9230777]
[1763327526113,0.68,136.38,136.35,3.9230777]
[1763327527208,0.68,136.38,136.34,0.69]
[1763327527209,0.68,136.38,136.36,3.9230777]
[1763327527550,0.68,136.41,136.36,3.9230777]
[1763327527752,103.2,136.42,136.4,3.9230777]
[1763327528043,0.68,136.43,136.4,3.9230777]
[1763327528936,0.68,136.43,136.41,3.9230777]
[1763327529131,0.68,136.43,136.4,3.9230777]
[1763327532917,23.3312,136.46,136.42,3.9230777]
[1763327533238,0.68,136.45,136.43,3.9230777]
[1763327533423,0.68,136.47,136.44,3.9230777]
[1763327533623,103.2,136.48,136.45,3.9230777]
[1763327533825,4.8030777,136.5,136.46,3.9230777]
[1763327533826,0.68,136.49,136.46,3.9230777]
[1763327534154,0.2,136.5,136.47,3.9230777]
[1763327534521,0.88,136.5,136.47,3.9230777]
[1763327534727,4.8030777,136.5,136.46,3.9230777]
[1763327535039,4.8030777,136.5,136.47,3.9230777]
[1763327535040,0.88,136.5,136.47,3.9230777]
[1763327535214,0.88,136.5,136.46,3.9230777]
[1763327535418,0.68,136.49,136.46,3.9230777]
[1763327535843,0.68,136.49,136.42,3.9230777]
[1763327535844,4.5930777,136.49,136.44,0.66]
[1763327536014,0.67,136.49,136.46,3.9230777]
[1763327536439,0.2,136.5,136.47,4.5830777]
[1763327536647,0.2,136.5,136.49,3.9230777]
[1763327537030,0.2,136.5,136.48,3.9230777]
[1763327537520,0.2,136.5,136.48,4.5830777]
[1763327537723,0.2,136.5,136.48,0.66]
[1763327537924,0.2,136.5,136.49,3.9230777]
[1763327539125,0.87,136.5,136.43,3.9230777]
[1763327539328,0.87,136.5,136.42,3.9230777]
[1763327539329,26.5742777,136.47,136.42,3.9230777]
[1763327539536,26.5742777,136.47,136.44,3.9230777]
[1763327539537,22.6512,136.47,136.44,3.9230777]
[1763327540037,23.3212,136.47,136.44,3.9230777]
[1763327540551,23.3212,136.47,136.43,4.5830777]
[1763327542037,23.3212,136.47,136.44,3.9230777]
[1763327542422,23.3212,136.47,136.43,0.66]
[1763327542628,23.3212,136.47,136.43,4.5830777]
[1763327542929,23.3212,136.47,136.44,3.9230777]
[1763327543931,23.3212,136.47,136.43,4.5830777]
[1763327544247,23.3212,136.47,136.43,0.66]
[1763327544655,26.5742777,136.47,136.42,3.9230777]
[1763327544852,0.67,136.46,136.41,3.9230777]
[1763327545150,3.9230777,136.48,136.43,4.5830777]
[1763327545357,0.67,136.47,136.43,4.5830777]
[1763327545548,0.67,136.47,136.43,3.9230777]
[1763327545856,4.5930777,136.47,136.42,3.9230777]
[1763327546348,0.67,136.47,136.43,3.9230777]
[1763327546546,0.67,136.46,136.43,3.9230777]
[1763327547428,23.3212,136.49,136.44,0.66]
[1763327547633,4.5930777,136.48,136.43,3.9230777]
[1763327548259,4.5930777,136.47,136.42,4.5830777]
[1763327548757,4.5930777,136.47,136.43,0.66]
[1763327549138,23.3212,136.49,136.43,4.5830777]
[1763327549453,3.9230777,136.48,136.43,4.5830777]
[1763327549663,4.5930777,136.48,136.43,4.5830777]
[1763327550056,0.67,136.47,136.43,4.5830777]
[1763327550663,4.5930777,136.47,136.41,0.7]
[1763327550964,3.9230777,136.46,136.41,4.6230777]
[1763327551143,4.5930777,136.46,136.41,4.6230777]
[1763327551769,3.9230777,136.44,136.37,0.7]
[1763327552056,3.9230777,136.44,136.39,3.9230777]
[1763327552231,4.5930777,136.43,136.38,4.6230777]
[1763327552845,3.9230777,136.43,136.38,4.6230777]
[1763327553048,0.67,136.42,136.38,4.6230777]
[1763327553335,4.5930777,136.43,136.39,0.7]
[1763327553662,76.5742777,136.45,136.4,3.9230777]
[1763327554039,77.2442777,136.45,136.41,0.7]
[1763327554557,4.5930777,136.44,136.4,3.9230777]
[1763327554860,4.5930777,136.44,136.39,3.9230777]
[1763327555066,3.9230777,136.43,136.39,3.9230777]
[1763327555359,4.5930777,136.43,136.39,0.7]
[1763327556145,4.5930777,136.42,136.37,4.6230777]
[1763327556754,3.9230777,136.39,136.34,4.6230777]
[1763327557064,3.9230777,136.38,136.32,22.75639083]
[1763327557267,3.9230777,136.38,136.33,4.6230777]
[1763327557653,4.5930777,136.38,136.34,0.7]
[1763327558871,0.67,136.37,136.33,3.9230777]
[1763327559049,3.9230777,136.34,136.3,0.1]
[1763327559256,3.9230777,136.35,136.3,4.0230777]
[1763327559466,4.5930777,136.35,136.3,4.0230777]
[1763327559774,0.67,136.34,136.3,4.7230777]
[1763327560377,4.5930777,136.34,136.3,0.1]
[1763327560576,4.5930777,136.34,136.3,0.8]
[1763327560877,0.67,136.33,136.3,0.1]
[1763327561063,0.67,136.33,136.3,4.0230777]
[1763327561576,0.67,136.33,136.3,0.1]
[1763327562468,4.5930777,136.33,136.3,0.1]
[1763327562873,0.67,136.32,136.3,0.1]
[1763327564150,3.9230777,136.31,136.3,0.1]
[1763327564554,4.5930777,136.31,136.3,0.1]
[1763327564982,53.9230777,136.32,136.3,0.1]
[1763327565280,22.6512,136.33,136.3,4.0230777]
[1763327565463,23.3212,136.33,136.3,0.1]
[1763327568267,136.27505366,136.35,136.31,11.12385366]
[1763327568460,136.94505366,136.35,136.31,10.42385366]
[1763327568780,136.94505366,136.35,136.3,0.1]
[1763327568781,10.42385366,136.33,136.3,0.1]
[1763327568990,61.09385366,136.34,136.3,0.8]
[1763327569197,61.09385366,136.34,136.3,11.22385366]
[1763327569366,60.42385366,136.34,136.3,11.22385366]
[1763327569566,0.67,136.33,136.3,11.22385366]
[1763327569869,61.09385366,136.34,136.3,11.22385366]
[1763327570066,50.67,136.34,136.3,11.22385366]
[1763327570563,50.67,136.34,136.31,10.42385366]
[1763327571584,0.67,136.34,136.31,10.42385366]
[1763327571784,103.2,136.35,136.31,11.12385366]
[1763327571973,103.2,136.35,136.32,11.12385366]
[1763327572175,103.2,136.35,136.31,10.42385366]
[1763327572380,103.87,136.35,136.31,10.42385366]
[1763327572681,50.67,136.38,136.33,10.42385366]
[1763327572990,11.09385366,136.37,136.33,10.42385366]
[1763327573284,0.67,136.36,136.33,10.42385366]
[1763327573485,73.3212,136.38,136.34,11.12385366]
[1763327573695,23.3212,136.38,136.35,10.42385366]
[1763327574070,23.3212,136.38,136.34,11.12385366]
[1763327574769,22.6512,136.38,136.35,0.7]
[1763327575065,23.3212,136.38,136.35,0.7]
[1763327575266,23.3212,136.38,136.33,0.7]
[1763327575488,23.3212,136.38,136.34,10.42385366]
[1763327575671,10.42385366,136.37,136.32,0.7]
[1763327575873,11.09385366,136.37,136.32,11.12385366]
[1763327576177,11.09385366,136.37,136.33,10.42385366]
[1763327576178,0.67,136.37,136.33,10.42385366]
[1763327576375,11.09385366,136.36,136.3,11.92385366]
[1763327576685,10.42385366,136.35,136.31,10.42385366]
[1763327576890,10.42385366,136.34,136.3,0.1]
[1763327577198,11.09385366,136.34,136.3,10.52385366]
[1763327577569,11.09385366,136.33,136.3,0.1]
[1763327578077,0.67,136.33,136.3,10.52385366]
[1763327578587,50.0,136.34,136.31,10.42385366]
[1763327578792,50.67,136.34,136.31,10.42385366]
[1763327579565,103.87,136.36,136.33,10.42385366]
[1763327579765,0.67,136.35,136.32,10.42385366]
[1763327580169,113.62385366,136.36,136.32,11.09385366]
[1763327580369,103.88,136.36,136.32,11.09385366]
[1763327580581,103.88,136.36,136.32,10.42385366]
[1763327580780,103.88,136.36,136.33,5.98406536]
[1763327581685,0.68,136.35,136.32,5.98406536]
[1763327581883,6.66406536,136.35,136.3,0.1]
[1763327582092,6.66406536,136.35,136.3,6.08406536]
[1763327582093,0.68,136.34,136.3,6.08406536]
[1763327582270,6.66406536,136.34,136.3,6.08406536]
[1763327582598,5.98406536,136.31,136.3,0.1]
[1763327582898,28.63526536,136.31,136.3,0.1]
[1763327583089,23.3312,136.31,136.3,0.1]
[1763327583289,29.31526536,136.31,136.3,0.1]
[1763327583601,79.31526536,136.31,136.3,0.1]
[1763327584399,29.31526536,136.31,136.3,0.1]
[1763327584597,79.31526536,136.31,136.3,0.1]
[1763327584770,29.31526536,136.31,136.3,0.1]
[1763327584977,23.3312,136.31,136.3,0.1]
[1763327585486,29.31526536,136.31,136.3,0.1]
[1763327586297,23.3312,136.31,136.3,0.1]
[1763327586505,29.31526536,136.31,136.3,0.1]
[1763327586696,23.3312,136.31,136.3,0.1]
[1763327586912,50.0,136.35,136.3,6.75406536]
[1763327587217,50.68,136.37,136.33,5.98406536]
[1763327587502,22.6512,136.38,136.35,5.98406536]
[1763327587703,50.0,136.39,136.36,5.98406536]
[1763327588009,23.3312,136.4,136.36,5.98406536]
[1763327588302,0.68,136.39,136.36,5.98406536]
[1763327588482,28.63526536,136.4,136.36,5.98406536]
[1763327588677,0.68,136.39,136.36,5.98406536]
[1763327588992,6.66406536,136.39,136.35,5.98406536]
[1763327589290,28.63526536,136.4,136.36,6.65406536]
[1763327589483,29.31526536,136.4,136.36,5.98406536]
[1763327589710,29.31526536,136.4,136.35,5.98406536]
[1763327589711,0.68,136.39,136.35,5.98406536]
[1763327590000,28.63526536,136.4,136.35,5.98406536]
[1763327590205,29.31526536,136.4,136.36,5.98406536]
[1763327590409,23.3312,136.4,136.36,5.98406536]
[1763327590611,23.3312,136.4,136.36,6.65406536]